[Event "*** Titled Tuesday Blitz"]
[Site "Chess.com"]
[Date "2019.07.02"]
[Round "4"]
[White "vlad10898"]
[Black "KaterynaLagno"]
[Result "0-1"]
[WhiteElo "2473"]
[BlackElo "2666"]
[TimeControl "180+2"]
[EndTime "13:53:25 PDT"]
[Termination "KaterynaLagno won by resignation"]

1. e4 {[%clk 0:02:58.2]} 1... e5 {[%clk 0:03:01]} 2. Nf3 {[%clk 0:02:59.2]} 2...
Nc6 {[%clk 0:03:01]} 3. Bb5 {[%clk 0:02:53.2]} 3... f5 {[%clk 0:03:01.4]} 4. d3
{[%clk 0:02:53.3]} 4... fxe4 {[%clk 0:03:02.4]} 5. dxe4 {[%clk 0:02:53.3]} 5...
Nf6 {[%clk 0:03:03.2]} 6. O-O {[%clk 0:02:53.2]} 6... d6 {[%clk 0:03:03.8]} 7.
Nc3 {[%clk 0:02:35]} 7... Be7 {[%clk 0:03:03]} 8. Qd3 {[%clk 0:02:36.3]} 8...
O-O {[%clk 0:02:50.2]} 9. Qc4+ {[%clk 0:02:36.4]} 9... Kh8 {[%clk 0:02:51.4]}
10. Bxc6 {[%clk 0:02:35.6]} 10... bxc6 {[%clk 0:02:53.3]} 11. Qxc6 {[%clk
0:02:36.7]} 11... Bd7 {[%clk 0:02:55]} 12. Qc4 {[%clk 0:02:33.1]} 12... c6
{[%clk 0:02:56.2]} 13. Bg5 {[%clk 0:01:40.4]} 13... Qe8 {[%clk 0:02:57]} 14.
Rad1 {[%clk 0:01:27.3]} 14... Qg6 {[%clk 0:02:56]} 15. Bxf6 {[%clk 0:01:20.7]}
15... gxf6 {[%clk 0:02:35.9]} 16. Nh4 {[%clk 0:01:12]} 16... Qg4 {[%clk
0:02:25.1]} 17. g3 {[%clk 0:01:11]} 17... d5 {[%clk 0:02:18.8]} 18. Qe2 {[%clk
0:01:07]} 18... d4 {[%clk 0:02:18.1]} 19. f3 {[%clk 0:00:57.3]} 19... Qh3 {[%clk
0:02:18.9]} 20. Nb1 {[%clk 0:00:52.9]} 20... Rg8 {[%clk 0:02:16.3]} 21. Qg2
{[%clk 0:00:52.1]} 21... Bc5 {[%clk 0:02:01]} 22. Kh1 {[%clk 0:00:33.8]} 22...
Qe6 {[%clk 0:01:47.1]} 23. b3 {[%clk 0:00:34.9]} 23... a5 {[%clk 0:01:37.7]} 24.
Nd2 {[%clk 0:00:29.1]} 24... a4 {[%clk 0:01:37.2]} 25. f4 {[%clk 0:00:30.4]}
25... axb3 {[%clk 0:01:36.8]} 26. axb3 {[%clk 0:00:31.7]} 26... Ra2 {[%clk
0:01:34]} 27. Nc4 {[%clk 0:00:31.4]} 27... exf4 {[%clk 0:01:10.8]} 28. Rxf4
{[%clk 0:00:30.5]} 28... d3 {[%clk 0:01:11.9]} 29. Rxd3 {[%clk 0:00:27.1]} 29...
Ra1+ {[%clk 0:01:12.9]} 30. Rf1 {[%clk 0:00:28]} 30... Rxf1+ {[%clk 0:01:13]}
31. Qxf1 {[%clk 0:00:28.3]} 31... Qxe4+ {[%clk 0:01:14.7]} 32. Ng2 {[%clk
0:00:21.8]} 32... Bf5 {[%clk 0:01:05.6]} 33. Rf3 {[%clk 0:00:15]} 33... Bh3
{[%clk 0:01:03.7]} 34. Rxf6 {[%clk 0:00:08.3]} 34... Rd8 {[%clk 0:00:48.8]} 35.
Rf3 {[%clk 0:00:07.4]} 35... Bg4 {[%clk 0:00:41.8]} 36. Rd3 {[%clk 0:00:08.2]}
36... Rf8 {[%clk 0:00:41.9]} 37. Qa1+ {[%clk 0:00:06.7]} 37... Kg8 {[%clk
0:00:43.5]} 38. Nd2 {[%clk 0:00:06]} 38... Qe2 {[%clk 0:00:29.1]} 39. Qe1 {[%clk
0:00:07.2]} 39... Rf2 {[%clk 0:00:14.6]} 40. Qxe2 {[%clk 0:00:07.2]} 40... Rxe2
{[%clk 0:00:16.5]} 41. Rd8+ {[%clk 0:00:07.3]} 41... Kf7 {[%clk 0:00:17]} 42.
Rd3 {[%clk 0:00:02.8]} 42... Bh3 {[%clk 0:00:16.5]} 43. Nf4 {[%clk 0:00:03.2]}
43... Re1+ {[%clk 0:00:17.3]} 0-1

[Event "*** Titled Tuesday Blitz"]
[Site "Chess.com"]
[Date "2019.07.02"]
[Round "4"]
[White "Sadikhov_Ulvi"]
[Black "GameOverBro"]
[Result "0-1"]
[WhiteElo "2685"]
[BlackElo "2495"]
[TimeControl "180+2"]
[EndTime "13:53:26 PDT"]
[Termination "GameOverBro won by resignation"]

1. Nf3 {[%clk 0:03:01.9]} 1... g6 {[%clk 0:03:00.8]} 2. g3 {[%clk 0:03:03.1]}
2... Bg7 {[%clk 0:03:02]} 3. Bg2 {[%clk 0:03:04.7]} 3... d6 {[%clk 0:03:03.4]}
4. O-O {[%clk 0:03:05.9]} 4... Nc6 {[%clk 0:03:04.6]} 5. d3 {[%clk 0:03:05.5]}
5... e5 {[%clk 0:03:05.6]} 6. e4 {[%clk 0:03:06.3]} 6... h6 {[%clk 0:03:05.4]}
7. c3 {[%clk 0:03:03.9]} 7... Nge7 {[%clk 0:02:59.3]} 8. h3 {[%clk 0:02:58.2]}
8... O-O {[%clk 0:03:00.3]} 9. d4 {[%clk 0:02:58.4]} 9... exd4 {[%clk
0:02:58.1]} 10. cxd4 {[%clk 0:02:58.2]} 10... d5 {[%clk 0:02:59.5]} 11. e5
{[%clk 0:02:57.9]} 11... Be6 {[%clk 0:02:58.1]} 12. Nc3 {[%clk 0:02:55.7]} 12...
Qd7 {[%clk 0:02:59.1]} 13. Kh2 {[%clk 0:02:54.9]} 13... b6 {[%clk 0:02:56.2]}
14. Re1 {[%clk 0:02:51.4]} 14... Na5 {[%clk 0:02:57.1]} 15. Ne2 {[%clk
0:02:42.3]} 15... c5 {[%clk 0:02:55.2]} 16. Nf4 {[%clk 0:02:42.9]} 16... Rac8
{[%clk 0:02:53.6]} 17. Nxe6 {[%clk 0:02:35.4]} 17... fxe6 {[%clk 0:02:49]} 18.
Qd3 {[%clk 0:02:33.4]} 18... Kh7 {[%clk 0:02:34.4]} 19. h4 {[%clk 0:02:34.2]}
19... Kg8 {[%clk 0:02:30.9]} 20. Bf4 {[%clk 0:02:26.4]} 20... Nf5 {[%clk
0:02:28.9]} 21. b3 {[%clk 0:02:22.7]} 21... c4 {[%clk 0:02:29.4]} 22. bxc4
{[%clk 0:02:09.1]} 22... Rxc4 {[%clk 0:02:28.5]} 23. Qd2 {[%clk 0:02:05.8]}
23... Kh7 {[%clk 0:02:27.8]} 24. g4 {[%clk 0:02:03.7]} 24... Ne7 {[%clk
0:02:14.5]} 25. Be3 {[%clk 0:01:57.5]} 25... Rfc8 {[%clk 0:01:58.9]} 26. Rac1
{[%clk 0:01:55.1]} 26... Qa4 {[%clk 0:01:58.2]} 27. h5 {[%clk 0:01:26.3]} 27...
Rxc1 {[%clk 0:01:45.5]} 28. Rxc1 {[%clk 0:01:26.4]} 28... Rxc1 {[%clk
0:01:43.5]} 29. Qxc1 {[%clk 0:01:26.8]} 29... Nc4 {[%clk 0:01:44.5]} 30. Qb1
{[%clk 0:01:13.7]} 30... Qe8 {[%clk 0:01:23.3]} 31. Bf1 {[%clk 0:01:08.1]} 31...
Nxe3 {[%clk 0:01:21]} 32. fxe3 {[%clk 0:01:08.8]} 32... Kg8 {[%clk 0:01:22.4]}
33. hxg6 {[%clk 0:01:02.4]} 33... Nxg6 {[%clk 0:01:23.4]} 34. Bd3 {[%clk
0:01:01.3]} 34... Qf7 {[%clk 0:01:23.3]} 35. Kg3 {[%clk 0:00:59.3]} 35... Nf8
{[%clk 0:01:11.2]} 36. Qc2 {[%clk 0:00:59.6]} 36... h5 {[%clk 0:01:12]} 37. Qc8
{[%clk 0:00:53.4]} 37... hxg4 {[%clk 0:01:08.7]} 38. Ng5 {[%clk 0:00:52]} 38...
Qh5 {[%clk 0:00:58.6]} 39. Qd8 {[%clk 0:00:36.7]} 39... Bh6 {[%clk 0:00:55.8]}
40. Bh7+ {[%clk 0:00:29]} 40... Kh8 {[%clk 0:00:46]} 41. Qf6+ {[%clk 0:00:27.7]}
41... Bg7 {[%clk 0:00:47.2]} 42. Qd8 {[%clk 0:00:25]} 42... Bh6 {[%clk
0:00:42.9]} 43. Qf6+ {[%clk 0:00:21.4]} 43... Bg7 {[%clk 0:00:44]} 44. Qd8
{[%clk 0:00:19.6]} 44... b5 {[%clk 0:00:43.6]} 45. Bd3 {[%clk 0:00:17.1]} 45...
Bh6 {[%clk 0:00:40.2]} 46. Qf6+ {[%clk 0:00:17]} 46... Bg7 {[%clk 0:00:41.4]}
47. Qd8 {[%clk 0:00:18]} 47... Bh6 {[%clk 0:00:41.9]} 48. Qf6+ {[%clk
0:00:17.2]} 48... Kg8 {[%clk 0:00:40.1]} 49. Nxe6 {[%clk 0:00:10.6]} 49... Qh3+
{[%clk 0:00:41.2]} 50. Kf2 {[%clk 0:00:11.5]} 50... g3+ {[%clk 0:00:42.6]} 51.
Ke1 {[%clk 0:00:11.1]} 51... Qxe6 {[%clk 0:00:42.9]} 52. Qxe6+ {[%clk
0:00:11.6]} 52... Nxe6 {[%clk 0:00:44]} 53. Bxb5 {[%clk 0:00:12.6]} 53... Bxe3
{[%clk 0:00:44.9]} 54. Bf1 {[%clk 0:00:12.8]} 54... Bxd4 {[%clk 0:00:45.2]} 55.
Bg2 {[%clk 0:00:13.8]} 55... Nf4 {[%clk 0:00:45]} 0-1

[Event "*** Titled Tuesday Blitz"]
[Site "Chess.com"]
[Date "2019.07.02"]
[Round "4"]
[White "maximnovik"]
[Black "Witik"]
[Result "1-0"]
[WhiteElo "2459"]
[BlackElo "2532"]
[TimeControl "180+2"]
[EndTime "13:53:30 PDT"]
[Termination "maximnovik won by resignation"]

1. c4 {[%clk 0:03:00]} 1... e5 {[%clk 0:02:59]} 2. g3 {[%clk 0:03:00.3]} 2... g6
{[%clk 0:02:49.9]} 3. Bg2 {[%clk 0:03:00.4]} 3... Bg7 {[%clk 0:02:50.9]} 4. Nc3
{[%clk 0:03:00.9]} 4... f5 {[%clk 0:02:50.2]} 5. d3 {[%clk 0:03:00.7]} 5... Nf6
{[%clk 0:02:49.4]} 6. Bg5 {[%clk 0:03:01.4]} 6... O-O {[%clk 0:02:47.4]} 7. Nf3
{[%clk 0:03:02.4]} 7... d6 {[%clk 0:02:44.8]} 8. O-O {[%clk 0:03:02.9]} 8...
Nbd7 {[%clk 0:02:39.4]} 9. Nd2 {[%clk 0:02:59]} 9... h6 {[%clk 0:02:36.4]} 10.
Bxf6 {[%clk 0:02:59.8]} 10... Nxf6 {[%clk 0:02:38.3]} 11. b4 {[%clk 0:02:59.6]}
11... Rb8 {[%clk 0:02:33.8]} 12. b5 {[%clk 0:02:59.7]} 12... Bd7 {[%clk
0:02:13.1]} 13. a4 {[%clk 0:02:59]} 13... h5 {[%clk 0:01:55.7]} 14. a5 {[%clk
0:02:54.2]} 14... h4 {[%clk 0:01:56.3]} 15. a6 {[%clk 0:02:42]} 15... b6 {[%clk
0:01:55.3]} 16. Rc1 {[%clk 0:02:36.3]} 16... hxg3 {[%clk 0:01:53.7]} 17. hxg3
{[%clk 0:02:36.2]} 17... Kf7 {[%clk 0:01:42.5]} 18. Nd5 {[%clk 0:02:34.5]} 18...
Rh8 {[%clk 0:01:41.3]} 19. Qb3 {[%clk 0:02:23.3]} 19... Be6 {[%clk 0:01:38.8]}
20. e3 {[%clk 0:02:11.5]} 20... Rh6 {[%clk 0:01:28.3]} 21. Nf3 {[%clk
0:02:04.3]} 21... Ng4 {[%clk 0:01:26.8]} 22. Nb4 {[%clk 0:01:36]} 22... Qf6
{[%clk 0:01:10.9]} 23. Nc6 {[%clk 0:01:34.1]} 23... Rbh8 {[%clk 0:01:11.5]} 24.
Qc2 {[%clk 0:01:14.8]} 24... g5 {[%clk 0:00:54.3]} 25. Rfd1 {[%clk 0:01:01.3]}
25... Qg6 {[%clk 0:00:41.2]} 26. Kf1 {[%clk 0:00:52.1]} 26... Bf6 {[%clk
0:00:31.6]} 27. Ke2 {[%clk 0:00:51.4]} 27... Kg7 {[%clk 0:00:29.8]} 28. Rh1
{[%clk 0:00:50.5]} 28... f4 {[%clk 0:00:25.7]} 29. Rxh6 {[%clk 0:00:41.7]} 29...
Rxh6 {[%clk 0:00:26.5]} 30. Rh1 {[%clk 0:00:40.9]} 30... Rxh1 {[%clk 0:00:19.7]}
31. Bxh1 {[%clk 0:00:42]} 31... Nxf2 {[%clk 0:00:09.8]} 32. Kxf2 {[%clk
0:00:39.7]} 32... g4 {[%clk 0:00:11]} 33. Ne1 {[%clk 0:00:24.7]} 33... fxg3+
{[%clk 0:00:06.1]} 34. Kg1 {[%clk 0:00:11.3]} 34... Qh6 {[%clk 0:00:08]} 35. Qe2
{[%clk 0:00:11.3]} 35... Bg5 {[%clk 0:00:09.3]} 36. Nc2 {[%clk 0:00:10.2]} 36...
e4 {[%clk 0:00:03.6]} 37. dxe4 {[%clk 0:00:09.4]} 37... Bxc4 {[%clk 0:00:03.6]}
38. Qd2 {[%clk 0:00:07.5]} 38... Bxb5 {[%clk 0:00:05]} 39. N6d4 {[%clk
0:00:07.6]} 39... Bxa6 {[%clk 0:00:06.3]} 40. Nf5+ {[%clk 0:00:08.7]} 40... Kg6
{[%clk 0:00:07.8]} 41. Nxh6 {[%clk 0:00:10]} 41... Kxh6 {[%clk 0:00:09.7]} 42.
e5 {[%clk 0:00:11.3]} 42... dxe5 {[%clk 0:00:10.7]} 43. Be4 {[%clk 0:00:12.1]}
43... Bc4 {[%clk 0:00:11]} 44. Qd7 {[%clk 0:00:12.5]} 44... Bg8 {[%clk
0:00:09.9]} 45. Qe8 {[%clk 0:00:13]} 45... Kg7 {[%clk 0:00:10.6]} 46. Qg6+
{[%clk 0:00:13.2]} 1-0

[Event "*** Titled Tuesday Blitz"]
[Site "Chess.com"]
[Date "2019.07.02"]
[Round "4"]
[White "NeverEverForever1990"]
[Black "pedro_gines"]
[Result "0-1"]
[WhiteElo "2432"]
[BlackElo "2404"]
[TimeControl "180+2"]
[EndTime "13:53:32 PDT"]
[Termination "pedro_gines won by resignation"]

1. d4 {[%clk 0:03:01.9]} 1... e6 {[%clk 0:02:59.9]} 2. Nf3 {[%clk 0:03:02.1]}
2... c5 {[%clk 0:02:59.9]} 3. c3 {[%clk 0:02:59.3]} 3... Nf6 {[%clk 0:02:56.9]}
4. Bf4 {[%clk 0:02:58.7]} 4... Qb6 {[%clk 0:02:57.4]} 5. Qb3 {[%clk 0:02:48.5]}
5... Nc6 {[%clk 0:02:52.6]} 6. e3 {[%clk 0:02:38]} 6... d5 {[%clk 0:02:47.1]} 7.
Na3 {[%clk 0:02:33.8]} 7... c4 {[%clk 0:02:29.6]} 8. Qxb6 {[%clk 0:02:28.6]}
8... axb6 {[%clk 0:02:30.8]} 9. Nb5 {[%clk 0:02:30.2]} 9... Ra5 {[%clk
0:02:32.4]} 10. Nd6+ {[%clk 0:01:51.9]} 10... Bxd6 {[%clk 0:02:29.8]} 11. Bxd6
{[%clk 0:01:53.6]} 11... Ne4 {[%clk 0:02:31.2]} 12. Bc7 {[%clk 0:01:50.1]} 12...
Kd7 {[%clk 0:02:27.1]} 13. Bf4 {[%clk 0:01:41.3]} 13... b5 {[%clk 0:02:25.7]}
14. Nd2 {[%clk 0:01:38.5]} 14... Nd6 {[%clk 0:01:49.4]} 15. b4 {[%clk
0:01:07.1]} 15... Ra3 {[%clk 0:01:36.6]} 16. Nb1 {[%clk 0:01:02.6]} 16... Ra6
{[%clk 0:01:37.4]} 17. Be2 {[%clk 0:00:49.9]} 17... h5 {[%clk 0:01:34]} 18. Bxd6
{[%clk 0:00:41.3]} 18... Kxd6 {[%clk 0:01:34.2]} 19. Kd2 {[%clk 0:00:42.3]}
19... Bd7 {[%clk 0:01:35]} 20. Kc2 {[%clk 0:00:42.5]} 20... h4 {[%clk
0:01:35.7]} 21. Kb2 {[%clk 0:00:41.5]} 21... g5 {[%clk 0:01:20.7]} 22. Na3
{[%clk 0:00:32.9]} 22... Ne7 {[%clk 0:01:14.4]} 23. Nc2 {[%clk 0:00:24.7]} 23...
f6 {[%clk 0:01:10.4]} 24. f3 {[%clk 0:00:18.7]} 24... Be8 {[%clk 0:01:03.5]} 25.
e4 {[%clk 0:00:18.2]} 25... Bg6 {[%clk 0:01:04.6]} 26. Na3 {[%clk 0:00:16.7]}
26... Rxa3 {[%clk 0:00:59.7]} 27. Kxa3 {[%clk 0:00:17.2]} 27... dxe4 {[%clk
0:01:00.8]} 28. fxe4 {[%clk 0:00:18.4]} 28... Bxe4 {[%clk 0:01:02.7]} 29. Bf3
{[%clk 0:00:19.6]} 29... Bxf3 {[%clk 0:00:56.6]} 30. gxf3 {[%clk 0:00:21.5]}
30... Nd5 {[%clk 0:00:57.9]} 31. Kb2 {[%clk 0:00:22.3]} 31... Nf4 {[%clk
0:00:57.9]} 32. a4 {[%clk 0:00:23.3]} 32... Kc6 {[%clk 0:00:49.3]} 33. axb5+
{[%clk 0:00:24]} 33... Kb6 {[%clk 0:00:50]} 34. Kc2 {[%clk 0:00:22]} 34... h3
{[%clk 0:00:45.8]} 35. Rhe1 {[%clk 0:00:22.3]} 35... Re8 {[%clk 0:00:43.5]} 36.
Re4 {[%clk 0:00:23.1]} 36... f5 {[%clk 0:00:41.9]} 37. Re5 {[%clk 0:00:22.9]}
37... Nd3 {[%clk 0:00:41.6]} 38. Re3 {[%clk 0:00:23.8]} 38... Nf4 {[%clk
0:00:20.9]} 39. Rg1 {[%clk 0:00:21.2]} 39... Rg8 {[%clk 0:00:19.5]} 40. Rge1
{[%clk 0:00:18.3]} 40... Kxb5 {[%clk 0:00:18.1]} 41. Re5+ {[%clk 0:00:17.4]}
41... Kc6 {[%clk 0:00:18.6]} 42. Rc5+ {[%clk 0:00:18.3]} 42... Kd6 {[%clk
0:00:20.1]} 43. Rb5 {[%clk 0:00:19.6]} 43... g4 {[%clk 0:00:20.6]} 44. fxg4
{[%clk 0:00:20.3]} 44... fxg4 {[%clk 0:00:22.5]} 45. Rxb7 {[%clk 0:00:19.1]}
45... g3 {[%clk 0:00:22.9]} 46. hxg3 {[%clk 0:00:20.3]} 46... Rxg3 {[%clk
0:00:24.8]} 47. Rh7 {[%clk 0:00:20.3]} 47... Rg2+ {[%clk 0:00:25.3]} 48. Kb1
{[%clk 0:00:21.6]} 48... h2 {[%clk 0:00:25.6]} 49. Rc1 {[%clk 0:00:14.9]} 49...
Ne2 {[%clk 0:00:23.6]} 50. Rd1 {[%clk 0:00:12.1]} 50... Nxc3+ {[%clk 0:00:24.5]}
51. Kc1 {[%clk 0:00:13.1]} 51... Nxd1 {[%clk 0:00:25.3]} 0-1

[Event "*** Titled Tuesday Blitz"]
[Site "Chess.com"]
[Date "2019.07.02"]
[Round "4"]
[White "ruzomberok"]
[Black "DenishevM"]
[Result "1/2-1/2"]
[WhiteElo "2412"]
[BlackElo "2598"]
[TimeControl "180+2"]
[EndTime "13:53:42 PDT"]
[Termination "Game drawn - insufficient material"]

1. Nf3 {[%clk 0:03:01.9]} 1... Nf6 {[%clk 0:02:55]} 2. c4 {[%clk 0:03:02.8]}
2... c5 {[%clk 0:02:54.9]} 3. g3 {[%clk 0:02:59.1]} 3... g6 {[%clk 0:02:53.6]}
4. Bg2 {[%clk 0:02:59.7]} 4... Bg7 {[%clk 0:02:55.3]} 5. Nc3 {[%clk 0:02:58.1]}
5... O-O {[%clk 0:02:56.7]} 6. d4 {[%clk 0:02:59.1]} 6... d6 {[%clk 0:02:57.2]}
7. O-O {[%clk 0:02:57.5]} 7... Nc6 {[%clk 0:02:58.1]} 8. dxc5 {[%clk 0:02:54.9]}
8... dxc5 {[%clk 0:02:57.8]} 9. Be3 {[%clk 0:02:56.3]} 9... Nd7 {[%clk
0:02:56.2]} 10. Qd2 {[%clk 0:02:50]} 10... Qa5 {[%clk 0:02:30.8]} 11. Rfd1
{[%clk 0:02:30.3]} 11... Rb8 {[%clk 0:02:01.4]} 12. Bh6 {[%clk 0:02:01]} 12...
Nf6 {[%clk 0:01:52.1]} 13. Bf4 {[%clk 0:01:58.1]} 13... Ra8 {[%clk 0:01:45.5]}
14. Nd5 {[%clk 0:01:48.5]} 14... Qxd2 {[%clk 0:01:44.8]} 15. Rxd2 {[%clk
0:01:45.8]} 15... Nxd5 {[%clk 0:01:45.8]} 16. cxd5 {[%clk 0:01:42.8]} 16... Nd4
{[%clk 0:01:43.5]} 17. Rc1 {[%clk 0:01:36.8]} 17... Bf5 {[%clk 0:01:08.9]} 18.
Rxc5 {[%clk 0:01:32.9]} 18... Nxf3+ {[%clk 0:01:04.9]} 19. Bxf3 {[%clk
0:01:31.9]} 19... Rac8 {[%clk 0:01:06.8]} 20. Rxc8 {[%clk 0:01:28.6]} 20... Rxc8
{[%clk 0:01:08.7]} 21. Kg2 {[%clk 0:01:27]} 21... b6 {[%clk 0:00:56.3]} 22. e4
{[%clk 0:01:24.8]} 22... Bd7 {[%clk 0:00:56.1]} 23. e5 {[%clk 0:01:19.2]} 23...
Kf8 {[%clk 0:00:46.5]} 24. h4 {[%clk 0:01:19.4]} 24... h6 {[%clk 0:00:44.5]} 25.
Be4 {[%clk 0:01:15.1]} 25... g5 {[%clk 0:00:43.4]} 26. hxg5 {[%clk 0:01:14.8]}
26... hxg5 {[%clk 0:00:45.3]} 27. Bxg5 {[%clk 0:01:14.7]} 27... Bxe5 {[%clk
0:00:46.3]} 28. Bh6+ {[%clk 0:01:08.7]} 28... Kg8 {[%clk 0:00:46]} 29. b3 {[%clk
0:01:03.3]} 29... Rc3 {[%clk 0:00:38.4]} 30. Rc2 {[%clk 0:01:00.3]} 30... f6
{[%clk 0:00:29.2]} 31. Rxc3 {[%clk 0:00:59]} 31... Bxc3 {[%clk 0:00:31.1]} 32.
Be3 {[%clk 0:00:53.6]} 32... Kf7 {[%clk 0:00:31]} 33. Kf3 {[%clk 0:00:52.8]}
33... Bb5 {[%clk 0:00:29.5]} 34. Bf5 {[%clk 0:00:49.5]} 34... Bb4 {[%clk
0:00:26.1]} 35. Be6+ {[%clk 0:00:48.6]} 35... Ke8 {[%clk 0:00:26.8]} 36. g4
{[%clk 0:00:48.6]} 36... Bd6 {[%clk 0:00:27.3]} 37. g5 {[%clk 0:00:49]} 37...
fxg5 {[%clk 0:00:27]} 38. Bxg5 {[%clk 0:00:50.9]} 38... Kf8 {[%clk 0:00:27.7]}
39. Be3 {[%clk 0:00:51.3]} 39... Bd3 {[%clk 0:00:27.5]} 40. Bd4 {[%clk
0:00:47.4]} 40... Bb1 {[%clk 0:00:26.5]} 41. a3 {[%clk 0:00:48.6]} 41... Bxa3
{[%clk 0:00:26.6]} 42. Ke2 {[%clk 0:00:43.1]} 42... Bc2 {[%clk 0:00:21.5]} 43.
d6 {[%clk 0:00:36.6]} 43... Bxd6 {[%clk 0:00:21]} 44. Kd2 {[%clk 0:00:36.9]}
44... Be4 {[%clk 0:00:21.7]} 45. Ke3 {[%clk 0:00:37.3]} 45... Bc6 {[%clk
0:00:22.4]} 46. f4 {[%clk 0:00:38.3]} 46... Bc7 {[%clk 0:00:22.2]} 47. f5 {[%clk
0:00:38.9]} 47... a5 {[%clk 0:00:22.7]} 48. f6 {[%clk 0:00:39.2]} 48... exf6
{[%clk 0:00:23.2]} 49. Bxf6 {[%clk 0:00:41.1]} 49... Bd6 {[%clk 0:00:22.7]} 50.
Kd3 {[%clk 0:00:41.3]} 50... Bb5+ {[%clk 0:00:20.9]} 51. Bc4 {[%clk 0:00:40.8]}
51... Bd7 {[%clk 0:00:21.4]} 52. Bd4 {[%clk 0:00:40.7]} 52... Bc7 {[%clk
0:00:22]} 53. Kc3 {[%clk 0:00:40.4]} 53... Ke7 {[%clk 0:00:23.4]} 54. b4 {[%clk
0:00:38.8]} 54... a4 {[%clk 0:00:23.2]} 55. b5 {[%clk 0:00:39]} 55... Be6 {[%clk
0:00:14.8]} 56. Bxe6 {[%clk 0:00:36.2]} 56... Kxe6 {[%clk 0:00:16.7]} 57. Kb4
{[%clk 0:00:37.7]} 57... Kd6 {[%clk 0:00:17.2]} 58. Kxa4 {[%clk 0:00:37.8]}
58... Kd5 {[%clk 0:00:18.8]} 59. Bxb6 {[%clk 0:00:37.7]} 59... Bxb6 {[%clk
0:00:20.7]} 60. Kb3 {[%clk 0:00:39]} 60... Kc5 {[%clk 0:00:22.6]} 61. Kc2 {[%clk
0:00:40.8]} 61... Kxb5 {[%clk 0:00:24.5]} 1/2-1/2

[Event "*** Titled Tuesday Blitz"]
[Site "Chess.com"]
[Date "2019.07.02"]
[Round "4"]
[White "Grootneus"]
[Black "CMS13"]
[Result "1/2-1/2"]
[WhiteElo "2162"]
[BlackElo "2085"]
[TimeControl "180+2"]
[EndTime "13:53:49 PDT"]
[Termination "Game drawn by agreement"]

1. e4 {[%clk 0:03:01.9]} 1... e5 {[%clk 0:03:00.8]} 2. Nf3 {[%clk 0:03:02.4]}
2... Nc6 {[%clk 0:03:01.6]} 3. Bb5 {[%clk 0:03:04]} 3... a6 {[%clk 0:03:01.9]}
4. Ba4 {[%clk 0:03:05.7]} 4... Nf6 {[%clk 0:03:02.7]} 5. d3 {[%clk 0:03:07.2]}
5... d6 {[%clk 0:03:02.3]} 6. c3 {[%clk 0:03:07.5]} 6... Bd7 {[%clk 0:03:02.9]}
7. O-O {[%clk 0:03:08.6]} 7... g6 {[%clk 0:03:04.1]} 8. Nbd2 {[%clk 0:03:10]}
8... Bg7 {[%clk 0:03:05.5]} 9. d4 {[%clk 0:03:03.9]} 9... O-O {[%clk 0:03:06.2]}
10. Re1 {[%clk 0:03:04.8]} 10... b5 {[%clk 0:03:06]} 11. Bc2 {[%clk 0:03:02]}
11... Nh5 {[%clk 0:03:05.2]} 12. Nf1 {[%clk 0:02:58.7]} 12... Bg4 {[%clk
0:02:54.4]} 13. d5 {[%clk 0:02:57]} 13... Ne7 {[%clk 0:02:54.1]} 14. a4 {[%clk
0:02:57.6]} 14... Bd7 {[%clk 0:02:38.2]} 15. axb5 {[%clk 0:02:35]} 15... axb5
{[%clk 0:02:38.9]} 16. Rxa8 {[%clk 0:02:36.3]} 16... Qxa8 {[%clk 0:02:39.7]} 17.
Be3 {[%clk 0:02:23]} 17... f5 {[%clk 0:02:40]} 18. Qa1 {[%clk 0:02:17.7]} 18...
fxe4 {[%clk 0:02:37.7]} 19. Bxe4 {[%clk 0:02:18]} 19... Nf4 {[%clk 0:02:27.5]}
20. Bxf4 {[%clk 0:02:18.2]} 20... exf4 {[%clk 0:02:26.1]} 21. Ng5 {[%clk
0:02:10.8]} 21... Qxa1 {[%clk 0:02:15.3]} 22. Rxa1 {[%clk 0:02:11]} 22... b4
{[%clk 0:02:16.6]} 23. cxb4 {[%clk 0:02:06.7]} 23... Bxb2 {[%clk 0:02:15.9]} 24.
Re1 {[%clk 0:02:07.6]} 24... Nf5 {[%clk 0:02:15.2]} 25. Ne6 {[%clk 0:02:03.9]}
25... Bxe6 {[%clk 0:02:08.7]} 26. dxe6 {[%clk 0:02:05.8]} 26... Re8 {[%clk
0:02:09.9]} 27. Rb1 {[%clk 0:01:49.1]} 27... Bc3 {[%clk 0:02:08.9]} 28. Rc1
{[%clk 0:01:47.2]} 28... Bxb4 {[%clk 0:01:57.2]} 29. Rxc7 {[%clk 0:01:48.2]}
29... Re7 {[%clk 0:01:52]} 30. Rc4 {[%clk 0:01:31.4]} 30... Bc5 {[%clk
0:01:49.4]} 31. Bxf5 {[%clk 0:01:25.5]} 31... gxf5 {[%clk 0:01:50.4]} 32. Rxf4
{[%clk 0:01:26.7]} 32... Rxe6 {[%clk 0:01:48]} 33. Rxf5 {[%clk 0:01:28.1]} 33...
Kg7 {[%clk 0:01:47.7]} 34. g3 {[%clk 0:01:21.3]} 34... Re2 {[%clk 0:01:46]} 35.
Kg2 {[%clk 0:01:21.2]} 35... Kg6 {[%clk 0:01:44.9]} 36. g4 {[%clk 0:01:22.3]}
36... h5 {[%clk 0:01:37]} 37. h3 {[%clk 0:01:21.8]} 37... hxg4 {[%clk
0:01:37.6]} 38. hxg4 {[%clk 0:01:23.7]} 38... Bb6 {[%clk 0:01:34.7]} 39. Ng3
{[%clk 0:01:23.9]} 39... Rd2 {[%clk 0:01:34.2]} 40. Ne4 {[%clk 0:01:24.8]} 40...
Rd4 {[%clk 0:01:29.5]} 41. f3 {[%clk 0:01:13.7]} 41... d5 {[%clk 0:01:20.6]} 42.
Rf6+ {[%clk 0:00:53.3]} 42... Kg7 {[%clk 0:01:21.6]} 43. Rxb6 {[%clk 0:00:54.3]}
43... dxe4 {[%clk 0:01:22.6]} 44. f4 {[%clk 0:00:53.6]} 44... Rd2+ {[%clk
0:00:38.1]} 45. Kg3 {[%clk 0:00:54.2]} 45... Rd3+ {[%clk 0:00:37.2]} 46. Kg2
{[%clk 0:00:48.2]} 46... Rd2+ {[%clk 0:00:38.3]} 47. Kf1 {[%clk 0:00:47]} 47...
e3 {[%clk 0:00:35.7]} 48. Rb4 {[%clk 0:00:19]} 48... Rf2+ {[%clk 0:00:22.7]} 49.
Ke1 {[%clk 0:00:19.7]} 49... Rg2 {[%clk 0:00:23.7]} 50. g5 {[%clk 0:00:18.1]}
50... Kg6 {[%clk 0:00:24.8]} 51. Re4 {[%clk 0:00:18.4]} 51... Kf5 {[%clk
0:00:23.1]} 52. Rxe3 {[%clk 0:00:05.8]} 52... Kxf4 {[%clk 0:00:24.4]} 53. Re8
{[%clk 0:00:06.6]} 53... Rxg5 {[%clk 0:00:24.8]} 54. Rf8+ {[%clk 0:00:08]}
1/2-1/2